bitfinex/quotes_BTCUSD_20250326
["timestamp","ask_amount","ask_price","bid_price","bid_amount"]
[1742967375594,0.08298018,87523.0,87522.0,0.96837438]
[1742967375793,0.08298018,87523.0,87522.0,0.84205438]
[1742967376035,0.08298018,87523.0,87522.0,0.96837438]
[1742967380536,0.08298018,87523.0,87522.0,0.95988274]
[1742967382492,0.08298018,87523.0,87522.0,0.83356274]
[1742967382698,0.08298018,87523.0,87522.0,0.95980274]
[1742967385538,0.08298018,87523.0,87522.0,0.94843956]
[1742967386822,0.08298018,87523.0,87522.0,0.93389871]
[1742967392228,0.08298018,87523.0,87522.0,0.92889871]
[1742967393666,0.08298018,87523.0,87522.0,0.80265871]
[1742967393802,0.08298018,87523.0,87522.0,0.92885871]
[1742967394012,0.08298018,87523.0,87522.0,0.77765871]
[1742967394241,0.13088018,87523.0,87522.0,0.75479372]
[1742967394663,0.14476379,87523.0,87522.0,0.71929764]
[1742967395318,0.14476379,87523.0,87522.0,0.71329764]
[1742967395520,0.13088018,87523.0,87522.0,0.71329764]
[1742967395741,0.14476379,87523.0,87522.0,0.71329764]
[1742967395941,0.14476379,87523.0,87522.0,0.70729764]
[1742967396251,0.14476379,87523.0,87522.0,0.71329764]
[1742967396565,0.13088018,87523.0,87522.0,0.71329764]
[1742967396927,0.13088018,87523.0,87522.0,0.71929764]
[1742967411188,0.13088018,87523.0,87522.0,0.12625764]
[1742967414723,0.14475227,87523.0,87522.0,0.12625764]
[1742967429221,0.01425227,87523.0,87522.0,0.12625764]
[1742967429629,0.00038018,87523.0,87522.0,0.12625764]
[1742967436879,0.07628018,87523.0,87522.0,0.12625764]
[1742967437382,0.09014262,87523.0,87522.0,0.12625764]
[1742967438513,0.12452538,87523.0,87522.0,0.12625764]
[1742967439751,0.09014262,87523.0,87522.0,0.12625764]
[1742967441079,0.31865362,87523.0,87522.0,0.12625764]
[1742967441497,0.09014262,87523.0,87522.0,0.12625764]
[1742967442810,0.10156762,87523.0,87522.0,0.12625764]
[1742967447537,0.09014262,87523.0,87522.0,0.12625764]
[1742967455557,0.01424262,87523.0,87522.0,0.12625764]
[1742967457686,0.04851222,87523.0,87522.0,0.12625764]
[1742967457907,0.01424262,87523.0,87522.0,0.12625764]
[1742967462665,0.00038018,87523.0,87522.0,0.12625764]
[1742967462969,0.01424107,87523.0,87522.0,0.12625764]
[1742967469746,0.01424107,87523.0,87522.0,0.22892672]
[1742967470140,0.00038018,87523.0,87522.0,0.22892672]
[1742967472927,0.01424107,87523.0,87522.0,0.22892672]
[1742967479436,0.01424107,87523.0,87522.0,0.12625764]
[1742967482210,0.12849871,87523.0,87522.0,0.12625764]
[1742967485453,0.35700971,87523.0,87522.0,0.12625764]
[1742967485983,0.12849871,87523.0,87522.0,0.12625764]
[1742967488431,0.13992371,87523.0,87522.0,0.12625764]
[1742967489222,0.35700971,87523.0,87522.0,0.12625764]
[1742967489964,0.36843471,87523.0,87522.0,0.12625764]
[1742967492008,0.36843471,87523.0,87522.0,0.012]
[1742967492218,0.79183471,87523.0,87522.0,0.012]
[1742967492482,1.20343471,87523.0,87522.0,0.012]
[1742967492873,1.22133047,87523.0,87522.0,0.012]
[1742967493307,1.20343471,87523.0,87522.0,0.006]
[1742967493462,1.20343471,87523.0,87522.0,0.012]
[1742967493691,1.20343471,87523.0,87522.0,0.006]
[1742967493867,1.20343471,87523.0,87522.0,0.012]
[1742967494091,1.20343471,87523.0,87522.0,0.006]
[1742967494410,0.618341,87521.0,87520.0,0.10266908]
[1742967494873,0.63203669,87521.0,87520.0,0.10266908]
[1742967495272,0.239967,87512.0,87511.0,0.000339]
[1742967495442,0.25369673,87512.0,87511.0,0.000339]
[1742967496647,0.29950259,87512.0,87511.0,0.000339]
[1742967496990,0.29950259,87512.0,87511.0,0.006339]
[1742967498217,0.29950259,87512.0,87511.0,0.012339]
[1742967502087,0.25369673,87512.0,87511.0,0.012339]
[1742967502315,0.25386633,87512.0,87511.0,0.012339]
[1742967509153,0.01389933,87512.0,87511.0,0.012339]
[1742967516147,0.01368773,87512.0,87511.0,0.012339]
[1742967516789,0.02511473,87512.0,87511.0,0.012339]
[1742967517019,0.0279721,87512.0,87511.0,0.012339]
[1742967517932,0.02511473,87512.0,87511.0,0.012339]
[1742967521845,0.02797208,87512.0,87511.0,0.012339]
[1742967524284,0.02511473,87512.0,87511.0,0.012339]
[1742967525852,0.01368773,87512.0,87511.0,0.12659664]
[1742967526566,0.01368773,87512.0,87511.0,0.20629664]
[1742967528105,0.0001696,87512.0,87511.0,0.20629664]
[1742967531202,0.0001696,87512.0,87511.0,0.22898423]
[1742967532138,0.0001696,87512.0,87511.0,0.22298423]
[1742967532438,0.0001696,87512.0,87511.0,0.22898423]
[1742967532646,0.0001696,87512.0,87511.0,0.22298423]
[1742967533636,0.0001696,87512.0,87511.0,0.22898423]
[1742967535225,0.0001696,87512.0,87511.0,0.23398423]
[1742967535438,0.0001696,87512.0,87511.0,0.31930994]
[1742967535648,0.0001696,87512.0,87511.0,0.31330994]
[1742967535801,0.0001696,87512.0,87511.0,0.30730994]
[1742967536010,0.0001696,87512.0,87511.0,0.31330994]
[1742967536183,0.0001696,87512.0,87511.0,0.31930994]
[1742967536534,0.0001696,87512.0,87511.0,0.42197902]
[1742967538998,0.0001696,87512.0,87511.0,0.31930994]
[1742967545791,0.0001696,87512.0,87511.0,0.91254994]
[1742967549977,0.0001696,87512.0,87511.0,0.78314994]
[1742967550177,0.0001696,87512.0,87511.0,0.74752423]
[1742967550459,0.0001696,87512.0,87511.0,0.87392423]
[1742967552175,0.0001696,87512.0,87511.0,0.97633972]
[1742967552582,0.0001696,87512.0,87511.0,0.84993972]
[1742967552811,0.0001696,87512.0,87511.0,0.97633972]
[1742967556572,0.0001696,87512.0,87511.0,0.87392423]
[1742967558810,0.0001696,87512.0,87511.0,0.86892423]
[1742967559216,0.0001696,87512.0,87511.0,0.90458321]
[1742967559906,0.0001696,87512.0,87511.0,0.77818321]
[1742967560135,0.0001696,87512.0,87511.0,0.90458321]
[1742967563074,0.0001696,87512.0,87511.0,1.0069987]
[1742967563489,0.0001696,87512.0,87511.0,1.0119987]
[1742967564699,0.0001696,87512.0,87511.0,1.0059987]
[1742967565444,0.0001696,87512.0,87511.0,0.90358321]
[1742967565736,0.0001696,87512.0,87511.0,0.89758321]
[1742967565954,0.0001696,87512.0,87511.0,0.90358321]
[1742967566257,0.0001696,87512.0,87511.0,0.90958321]
[1742967568042,0.0001696,87512.0,87511.0,0.92412406]
[1742967568210,0.0001696,87512.0,87511.0,0.99992406]
[1742967568759,0.0001696,87512.0,87511.0,0.99392406]
[1742967569975,0.0001696,87512.0,87511.0,0.98792406]
[1742967570177,0.0001696,87512.0,87511.0,0.99392406]
[1742967570415,0.0001696,87512.0,87511.0,0.99992406]
[1742967571798,0.0001696,87512.0,87511.0,1.02130688]
[1742967572684,0.0001696,87512.0,87511.0,1.02588488]
[1742967578490,0.002,87529.0,87524.0,0.005]
[1742967578660,0.002,87529.0,87528.0,0.11425764]
[1742967579027,0.002,87529.0,87528.0,0.26304046]
[1742967579355,0.002,87529.0,87528.0,0.85620046]
[1742967580473,0.002,87529.0,87528.0,0.86820046]
[1742967581558,0.002,87529.0,87528.0,0.84681764]
[1742967581775,0.002,87529.0,87528.0,0.85824871]
[1742967584323,0.002,87529.0,87528.0,0.84681764]
[1742967585582,0.002,87529.0,87528.0,0.84673764]
[1742967587955,0.002,87529.0,87528.0,0.87009552]
[1742967591193,0.002,87529.0,87528.0,0.90572687]
[1742967593934,0.0021695,87529.0,87528.0,0.90572687]
[1742967596120,0.0021695,87529.0,87528.0,0.77840687]
[1742967596462,0.0021695,87529.0,87528.0,0.90548687]
[1742967603076,0.0021695,87529.0,87528.0,0.91048687]
[1742967604199,0.0021695,87529.0,87528.0,0.90448687]
[1742967605408,0.0021695,87529.0,87528.0,0.91048687]
[1742967609769,0.0021695,87529.0,87528.0,0.90548687]
[1742967609961,0.0021695,87529.0,87528.0,0.77840687]
[1742967610330,0.0021695,87529.0,87528.0,0.90548687]
[1742967634903,0.0021695,87529.0,87528.0,0.75504899]
[1742967635111,0.0021695,87529.0,87528.0,0.88188899]
[1742967645088,0.0021695,87529.0,87528.0,0.75504899]
[1742967645296,0.1335695,87529.0,87528.0,0.75504899]
[1742967645524,0.1529194,87529.0,87528.0,0.71941764]
[1742967646123,0.1643434,87529.0,87528.0,0.71941764]
[1742967646321,0.17572642,87529.0,87528.0,0.71341764]
[1742967646848,0.17572642,87529.0,87528.0,0.70741764]
[1742967647625,0.17572642,87529.0,87528.0,0.71341764]
[1742967648179,0.17572642,87529.0,87528.0,0.71941764]
[1742967651936,0.26644986,87529.0,87528.0,0.71941764]
[1742967652097,0.17572642,87529.0,87528.0,0.71941764]
[1742967658113,0.1529194,87529.0,87528.0,0.71941764]
[1742967658475,0.0215194,87529.0,87528.0,0.71941764]
[1742967658888,0.0021695,87529.0,87528.0,0.71941764]
[1742967659514,0.02151477,87529.0,87528.0,0.71941764]
[1742967660783,0.02151477,87529.0,87528.0,0.12625764]
[1742967666928,0.02151748,87529.0,87528.0,0.12625764]
[1742967668570,0.0021695,87529.0,87528.0,0.12625764]
[1742967668769,0.0021695,87529.0,87528.0,0.16189324]
[1742967671400,0.0021695,87529.0,87528.0,0.17349075]
[1742967671766,0.0021695,87529.0,87528.0,0.2615316]
[1742967672259,0.0021695,87529.0,87528.0,0.2675316]
[1742967673018,0.0021695,87529.0,87528.0,0.2615316]
[1742967673241,0.0021695,87529.0,87528.0,0.2555316]
[1742967673410,0.0021695,87529.0,87528.0,0.2675316]
[1742967678630,0.0021695,87529.0,87528.0,0.1880316]
[1742967679034,0.0021695,87529.0,87528.0,0.30291409]
[1742967681801,0.0021695,87529.0,87528.0,0.33725009]
[1742967689630,0.0021695,87529.0,87528.0,0.93033009]
[1742967695609,0.0021695,87529.0,87528.0,0.93009009]
[1742967697485,0.0021695,87529.0,87528.0,0.89575409]
[1742967699590,0.0021695,87529.0,87528.0,0.90075409]
[1742967699727,0.0021695,87529.0,87528.0,1.20465209]
[1742967699931,0.0021695,87529.0,87528.0,1.26167609]
[1742967700563,0.0021695,87529.0,87528.0,1.98847609]
[1742967700812,0.0021695,87529.0,87528.0,1.98247609]
[1742967701312,0.000339,87530.0,87529.0,0.35596485]
[1742967701513,0.000339,87530.0,87529.0,0.62685809]
[1742967702427,0.000339,87530.0,87529.0,1.32685809]
[1742967703796,0.000339,87530.0,87529.0,1.33285809]
[1742967704112,0.000339,87530.0,87529.0,1.74065809]
[1742967704725,0.000339,87530.0,87529.0,1.74665809]
[1742967706975,0.000339,87530.0,87529.0,1.74065809]
[1742967707626,0.000339,87530.0,87529.0,1.74665809]
[1742967709078,0.000339,87530.0,87529.0,1.04665809]
[1742967709317,0.000339,87530.0,87529.0,1.04699709]
[1742967710854,0.000339,87530.0,87529.0,1.05157409]
[1742967712186,0.000339,87530.0,87529.0,1.75157409]
[1742967722392,0.1264513,87561.0,87557.0,0.005]
[1742967722565,0.1264513,87561.0,87560.0,0.11425764]
[1742967722711,0.1264513,87561.0,87560.0,0.70713764]
[1742967723618,0.12657489,87561.0,87560.0,0.70713764]
[1742967724471,0.12657489,87561.0,87560.0,0.71313764]
[1742967724634,0.12657489,87561.0,87560.0,0.72444406]
[1742967725371,0.12657489,87561.0,87560.0,0.73044406]
[1742967728568,0.12657489,87561.0,87560.0,0.71913764]
[1742967728747,0.12657489,87561.0,87560.0,0.84537764]
[1742967729154,0.1459167,87561.0,87560.0,0.84537764]
[1742967730304,0.1459167,87561.0,87560.0,0.71913764]
[1742967730518,0.1459167,87561.0,87560.0,0.84541764]
[1742967731546,0.1573367,87561.0,87560.0,0.71913764]
[1742967731742,0.1573367,87561.0,87560.0,0.84541764]
[1742967732033,0.1459167,87561.0,87560.0,0.84541764]
[1742967732983,0.12674439,87561.0,87560.0,0.84541764]
[1742967733194,0.1460862,87561.0,87560.0,0.84541764]
[1742967734414,0.12674439,87561.0,87560.0,0.84541764]
[1742967735001,0.00029309,87561.0,87560.0,0.8810221]
[1742967735766,0.00029309,87561.0,87560.0,0.89556295]
[1742967736726,0.00029309,87561.0,87560.0,0.88356295]
[1742967736938,0.00029309,87561.0,87560.0,0.88956295]
[1742967737134,0.00029309,87561.0,87560.0,0.89556295]
[1742967738733,0.00029309,87561.0,87560.0,0.90056295]
[1742967741077,0.00029309,87561.0,87560.0,0.93488495]
[1742967748040,0.0001696,87600.0,87586.0,0.0857]
[1742967748331,0.4116,87661.0,87624.0,0.228245]
[1742967748332,0.0021695,87649.0,87624.0,0.228245]
[1742967748531,0.0021695,87649.0,87631.0,0.09393287]
[1742967748735,0.08715212,87641.0,87635.0,0.228219]
[1742967748938,0.08463374,87641.0,87640.0,0.3]
[1742967749140,0.05032824,87641.0,87640.0,0.46954085]
[1742967749347,0.05032824,87641.0,87640.0,0.31954085]
[1742967749472,0.05032824,87641.0,87640.0,0.04211386]
[1742967749672,0.05032824,87641.0,87640.0,0.17103386]
[1742967750360,0.05032824,87641.0,87640.0,0.04211386]
[1742967750561,0.05032824,87641.0,87640.0,0.17123386]
[1742967750841,0.05032824,87641.0,87640.0,0.02857301]
[1742967751038,0.05032824,87641.0,87640.0,0.15773301]
[1742967751205,0.05032824,87641.0,87640.0,0.27199065]
[1742967751406,0.05032824,87641.0,87640.0,0.2916515]
[1742967751585,0.0004123,87641.0,87640.0,0.2916515]
[1742967752374,0.0004123,87641.0,87640.0,0.2976515]
[1742967752779,0.0004123,87641.0,87640.0,0.2856515]
[1742967753042,0.0004123,87641.0,87640.0,0.2926515]
[1742967753242,0.0004123,87641.0,87640.0,0.27807065]
[1742967753778,0.0004123,87641.0,87640.0,0.27207065]
[1742967753926,0.0004123,87641.0,87640.0,0.27807065]
[1742967754296,0.0004123,87641.0,87640.0,0.27207065]
[1742967754904,0.0004123,87641.0,87640.0,0.3030215]
[1742967755108,0.0004123,87641.0,87640.0,0.2916115]
[1742967755256,0.0004123,87641.0,87640.0,0.2856115]
[1742967755466,0.0004123,87641.0,87640.0,0.2858515]
[1742967755658,0.0004123,87641.0,87640.0,0.2918515]
[1742967755903,0.0004123,87641.0,87640.0,0.1573715]
[1742967756046,0.0004123,87641.0,87640.0,0.27231065]
[1742967756647,0.0004123,87641.0,87640.0,0.27831065]
[1742967757060,0.0004123,87641.0,87640.0,0.27231065]
[1742967757451,0.0004123,87641.0,87640.0,0.3905775]
[1742967757650,0.0004123,87641.0,87640.0,0.8431475]
[1742967757854,0.0004123,87641.0,87640.0,0.8434861]
[1742967758059,0.0021695,87649.0,87648.0,0.544594]
[1742967758269,0.02,87684.0,87678.0,0.228107]
[1742967758485,0.02,87684.0,87678.0,0.35376964]
[1742967758727,0.00212367,87679.0,87678.0,0.35376964]
[1742967758944,0.00212367,87679.0,87678.0,0.36831049]
[1742967759165,0.00212367,87679.0,87678.0,0.37690549]
[1742967759518,0.00212367,87679.0,87678.0,0.38831049]
[1742967759717,0.02,87684.0,87678.0,0.38831049]
[1742967759718,0.02,87684.0,87683.0,0.239498]
[1742967759919,0.02,87684.0,87683.0,0.66829649]
[1742967760122,1e-08,87692.0,87684.0,0.31454085]
[1742967760334,1e-08,87692.0,87691.0,0.11425764]
[1742967760530,1e-08,87692.0,87691.0,0.12879849]
[1742967760748,1e-08,87692.0,87691.0,0.13567274]
[1742967761097,1e-08,87692.0,87691.0,0.1390437]
[1742967761227,1e-08,87692.0,87691.0,0.36524245]
[1742967761428,1e-08,87692.0,87691.0,0.1517103]
[1742967761624,1e-08,87692.0,87691.0,0.153584]
[1742967761822,1e-08,87692.0,87691.0,0.1517103]
[1742967762304,1e-08,87692.0,87691.0,0.13379849]
[1742967762519,1e-08,87692.0,87691.0,0.11425764]
[1742967762707,1e-08,87692.0,87691.0,0.12879849]
[1742967764566,0.002,87709.0,87692.0,0.01454085]
[1742967764867,0.00212344,87709.0,87697.0,0.01454085]
[1742967765107,0.00212344,87709.0,87698.0,0.11425764]
[1742967765316,0.00695619,87708.0,87699.0,0.12879849]
[1742967765463,0.00212344,87709.0,87702.0,0.01454085]
[1742967765668,0.00212344,87709.0,87703.0,0.11425764]
[1742967766674,0.00212344,87709.0,87704.0,0.01454085]
[1742967766938,0.00212344,87709.0,87705.0,0.11425764]
[1742967767139,0.00212344,87709.0,87706.0,0.01454085]
[1742967767339,0.00212344,87709.0,87707.0,0.11425764]
[1742967768179,0.00699257,87708.0,87707.0,0.11425764]
[1742967768989,0.00212344,87709.0,87707.0,0.11425764]
[1742967769369,0.00699317,87708.0,87707.0,0.11425764]
[1742967769807,0.01839417,87708.0,87707.0,0.11425764]
[1742967770473,0.11746223,87708.0,87707.0,0.11425764]
[1742967770674,0.11746223,87708.0,87697.0,0.0003384]
[1742967770675,0.011402,87698.0,87697.0,0.0003384]
[1742967770868,0.239457,87698.0,87697.0,0.11459604]
[1742967771047,0.24637596,87698.0,87697.0,0.11459604]
[1742967772896,0.00691896,87698.0,87697.0,0.12913689]
[1742967773243,0.00229264,87709.0,87697.0,0.12913689]
[1742967773244,0.00229264,87709.0,87698.0,0.01454085]
[1742967773394,0.00229264,87709.0,87702.0,0.01454085]
[1742967773571,0.0044742,87708.0,87704.0,0.01454085]
[1742967773772,0.24172264,87709.0,87705.0,0.11425764]
[1742967774000,0.00446312,87707.0,87705.0,0.11425764]
[1742967774203,0.00446312,87707.0,87705.0,0.12879849]
[1742967774204,0.011401,87706.0,87705.0,0.12879849]
[1742967774411,0.00445942,87706.0,87705.0,0.12879849]
[1742967774786,0.239431,87708.0,87705.0,0.12879849]
[1742967774987,0.24389812,87706.0,87705.0,0.11425764]
[1742967775326,0.239435,87706.0,87705.0,0.11425764]
[1742967775481,0.24389812,87706.0,87705.0,0.11425764]
[1742967776298,0.00446312,87706.0,87705.0,0.11425764]
[1742967776895,0.239435,87707.0,87705.0,0.11425764]
[1742967777121,0.01586412,87706.0,87705.0,0.11425764]
[1742967777498,0.01586412,87706.0,87705.0,0.12879849]
[1742967777916,0.34131731,87707.0,87706.0,0.01454085]
[1742967778161,0.34131731,87707.0,87706.0,0.11425764]
[1742967778502,0.01369364,87709.0,87706.0,0.11425764]
[1742967778503,0.00229264,87709.0,87707.0,0.01454085]
[1742967778706,0.00229264,87709.0,87708.0,0.12879849]
[1742967779594,0.00229264,87709.0,87708.0,0.1708645]
[1742967780001,0.01369364,87709.0,87708.0,0.1708645]
[1742967780196,0.00229264,87709.0,87708.0,0.1708645]
[1742967781029,0.23031864,87709.0,87708.0,0.1708645]
[1742967781209,0.24171964,87709.0,87708.0,0.1708645]
[1742967781413,0.01369364,87709.0,87708.0,0.1708645]
[1742967781818,0.8025882,87709.0,87708.0,0.00801115]
[1742967782135,0.72529364,87709.0,87708.0,0.00801115]
[1742967782680,0.539452,87700.0,87699.0,0.13393611]
[1742967782922,0.539452,87700.0,87699.0,0.24819375]
[1742967783497,0.539452,87700.0,87699.0,0.14810205]
[1742967784120,0.539452,87700.0,87699.0,0.11425764]
[1742967785586,0.539452,87700.0,87699.0,0.12879849]
[1742967786812,0.539457,87698.0,87684.0,0.1000917]
[1742967786990,0.539457,87698.0,87697.0,0.5923784]
[1742967788336,0.539457,87698.0,87697.0,0.72117689]
[1742967788734,0.239457,87698.0,87697.0,0.72117689]
[1742967788938,0.011402,87701.0,87698.0,0.01454085]
[1742967789273,0.239452,87700.0,87699.0,0.12879849]
[1742967789425,0.228049,87701.0,87700.0,0.01454085]
[1742967789623,0.239451,87701.0,87700.0,0.12879849]
[1742967792631,0.3124251,87701.0,87700.0,0.12879849]
[1742967792808,0.239451,87701.0,87700.0,0.12879849]
[1742967793107,0.239457,87698.0,87697.0,0.5923784]
[1742967793309,0.239457,87698.0,87697.0,0.74200063]
[1742967793854,0.539457,87698.0,87697.0,0.14996063]
[1742967794090,0.616857,87698.0,87697.0,0.5923784]
[1742967795723,0.666457,87698.0,87697.0,0.5923784]
[1742967796548,0.666457,87698.0,87697.0,0.0003384]
[1742967796795,0.666457,87698.0,87697.0,4e-07]
[1742967796945,0.78071464,87698.0,87697.0,4e-07]
[1742967797148,0.79857538,87698.0,87697.0,4e-07]
[1742967799983,0.82104614,87698.0,87697.0,4e-07]
[1742967806345,0.7067885,87698.0,87697.0,4e-07]
[1742967806543,0.68431774,87698.0,87697.0,4e-07]
[1742967807384,0.68448694,87698.0,87697.0,4e-07]
[1742967813847,0.70948694,87698.0,87697.0,4e-07]
[1742967819060,0.68448694,87698.0,87697.0,4e-07]
[1742967827160,0.55748694,87698.0,87697.0,4e-07]
[1742967835729,0.5396262,87698.0,87697.0,4e-07]
[1742967837267,0.65388384,87698.0,87697.0,4e-07]
[1742967837504,0.5396262,87698.0,87697.0,4e-07]
[1742967839030,0.55748773,87698.0,87697.0,4e-07]
[1742967852083,0.25748773,87698.0,87697.0,4e-07]
[1742967852290,0.2396262,87698.0,87697.0,0.11425804]
[1742967852692,0.5396262,87698.0,87697.0,0.11425804]
[1742967852950,0.5396262,87698.0,87697.0,0.12879889]
[1742967853227,0.0001692,87698.0,87697.0,0.12879889]
[1742967853512,0.0115712,87698.0,87697.0,0.20449889]
[1742967854255,0.0001692,87698.0,87697.0,0.20449889]
[1742967854896,0.0001692,87698.0,87697.0,0.25259889]
[1742967855488,0.0001692,87698.0,87697.0,0.28797382]
[1742967856447,0.0001692,87698.0,87697.0,0.25259889]
[1742967867647,0.0001692,87698.0,87697.0,0.35419425]
[1742967868045,0.0001692,87698.0,87697.0,0.94615425]
[1742967869031,0.0001692,87698.0,87697.0,0.92615425]
[1742967870087,0.0001692,87698.0,87697.0,0.82455889]
[1742967871503,0.00229264,87709.0,87698.0,0.13904085]
[1742967871704,0.227838,87782.0,87743.0,0.011396]
[1742967871878,0.01785234,87770.0,87759.0,0.12879849]
[1742967872110,0.01785234,87770.0,87760.0,0.01454085]
[1742967872278,0.0130595,87784.0,87766.0,0.005]
[1742967872279,0.00012286,87779.0,87766.0,0.005]
[1742967872483,0.00012286,87779.0,87766.0,0.02141017]
[1742967872870,0.00012286,87779.0,87767.0,0.005]
[1742967873042,0.00012286,87779.0,87768.0,0.12879849]
[1742967873219,0.0020516,87769.0,87768.0,0.31115849]
[1742967873436,0.0020516,87769.0,87768.0,0.12879849]
[1742967873977,0.2413146,87769.0,87768.0,0.12879849]
[1742967875905,0.0020516,87769.0,87768.0,0.25329849]
[1742967876078,0.0020516,87769.0,87768.0,0.12879849]
[1742967879596,0.0134446,87769.0,87768.0,0.12879849]
[1742967881349,0.0020516,87769.0,87768.0,0.12879849]
[1742967886038,0.0134446,87769.0,87768.0,0.12879849]
[1742967890060,0.013614,87769.0,87768.0,0.12879849]
[1742967891989,0.38960119,87769.0,87767.0,0.0003388]
[1742967892139,0.618166,87768.0,87767.0,0.0003388]
[1742967893424,1.029766,87768.0,87767.0,0.0003388]
[1742967895095,1.029766,87768.0,87767.0,8e-07]
[1742967895293,1.077666,87768.0,87767.0,8e-07]
[1742967895693,1.0955135,87768.0,87767.0,8e-07]
[1742967897166,1.11857957,87768.0,87767.0,8e-07]
[1742967898124,1.2680735,87768.0,87767.0,8e-07]
[1742967911194,1.0955135,87768.0,87767.0,8e-07]
[1742967911396,1.37761114,87768.0,87767.0,8e-07]
[1742967911711,1.2633535,87768.0,87767.0,8e-07]
[1742967911897,1.3487535,87768.0,87767.0,8e-07]
[1742967913477,1.3489229,87768.0,87767.0,8e-07]
[1742967919180,1.0542829,87768.0,87767.0,8e-07]
[1742967925819,1.0364354,87768.0,87767.0,8e-07]
[1742967928994,1.05428212,87768.0,87767.0,8e-07]
[1742967929223,1.16853976,87768.0,87767.0,8e-07]
[1742967929641,1.29673976,87768.0,87767.0,8e-07]
[1742967931364,1.18248212,87768.0,87767.0,8e-07]
[1742967932711,1.18248212,87768.0,87760.0,0.0003388]
[1742967932712,0.239285,87761.0,87760.0,0.0003388]
[1742967932978,0.539285,87761.0,87760.0,0.0003388]
[1742967934722,0.9484042,87761.0,87760.0,8e-07]
[1742967934922,1.06266184,87761.0,87760.0,8e-07]
[1742967935520,1.14496184,87761.0,87760.0,8e-07]
[1742967936106,1.16996184,87761.0,87760.0,8e-07]
[1742967936314,0.239381,87726.0,87725.0,0.01454085]
[1742967936507,0.239381,87726.0,87725.0,0.12879849]
[1742967936863,0.239381,87726.0,87725.0,0.11425764]
[1742967937427,0.239381,87726.0,87725.0,0.11466928]
[1742967937624,0.239381,87726.0,87725.0,0.00075044]
[1742967939318,0.24843205,87726.0,87725.0,0.00075044]
[1742967941081,0.95755125,87726.0,87725.0,0.00075044]
[1742967943827,1.03595125,87726.0,87725.0,0.00075044]
[1742967944060,1.03595125,87726.0,87725.0,4.4e-07]
[1742967944664,1.19415125,87726.0,87725.0,4.4e-07]
[1742967944822,1.30840889,87726.0,87725.0,4.4e-07]
[1742967945963,1.32626427,87726.0,87725.0,4.4e-07]
[1742967949627,1.37346427,87726.0,87725.0,4.4e-07]
[1742967958763,1.35560889,87726.0,87725.0,4.4e-07]
[1742967960856,1.35577839,87726.0,87725.0,4.4e-07]
[1742967962016,1.37363499,87726.0,87725.0,4.4e-07]
[1742967963433,0.239487,87687.0,87686.0,0.0804]
[1742967963666,0.239487,87687.0,87686.0,0.19465764]
[1742967963862,0.239487,87687.0,87686.0,0.20919849]
[1742967964523,0.239487,87687.0,87686.0,0.19465764]
[1742967965336,0.237487,87687.0,87686.0,0.19465764]
[1742967965734,0.33283879,87687.0,87686.0,0.19465764]
[1742967965939,0.239507,87680.0,87679.0,0.00046224]
[1742967966270,0.239507,87680.0,87679.0,0.11471988]
[1742967968227,0.011406,87673.0,87672.0,0.0003388]
[1742967968379,0.539526,87673.0,87672.0,8e-07]
[1742967968791,0.65378364,87673.0,87672.0,8e-07]
[1742967969837,0.539526,87673.0,87672.0,8e-07]
[1742967970981,0.691446,87673.0,87672.0,8e-07]
[1742967973847,1.1005652,87673.0,87672.0,8e-07]
[1742967974679,1.11843102,87673.0,87672.0,8e-07]
[1742967975083,0.96651102,87673.0,87672.0,8e-07]
[1742967975284,1.23188866,87673.0,87672.0,8e-07]
[1742967976988,1.23148866,87673.0,87672.0,8e-07]
[1742967985117,1.23165826,87673.0,87672.0,8e-07]
[1742967992356,1.11740062,87673.0,87672.0,8e-07]
[1742967995813,1.0995348,87673.0,87672.0,8e-07]
[1742967997158,0.539611,87642.0,87627.0,0.10159536]
[1742967997323,0.539611,87642.0,87641.0,0.00212367]
[1742967999769,0.57590545,87642.0,87641.0,0.00212367]
[1742967999978,0.539611,87642.0,87641.0,0.00212367]
[1742968004495,0.239611,87642.0,87641.0,0.13092216]
[1742968004685,0.239611,87642.0,87641.0,0.25412216]
[1742968008514,0.239611,87642.0,87641.0,0.25446136]
[1742968019797,0.239611,87642.0,87641.0,0.17736136]
[1742968020647,0.011408,87651.0,87642.0,0.01454085]
[1742968020887,0.011408,87651.0,87641.0,0.17736136]
[1742968020888,0.011407,87664.0,87651.0,0.01454085]
[1742968021086,0.011407,87661.0,87653.0,0.12879849]
[1742968021262,0.228156,87660.0,87655.0,0.09274085]
[1742968021459,0.239563,87660.0,87657.0,0.01454085]
[1742968021664,0.239565,87659.0,87658.0,0.12879849]
[1742968023943,0.26653627,87659.0,87658.0,0.12879849]
[1742968024365,0.239565,87659.0,87658.0,0.12879849]
[1742968029246,0.011409,87650.0,87649.0,0.59232]
[1742968029472,0.011409,87650.0,87649.0,0.72111849]
[1742968029627,0.011409,87650.0,87649.0,0.75540949]
[1742968036871,0.011409,87650.0,87649.0,0.76603655]
[1742968037466,0.011409,87650.0,87649.0,0.73174555]
[1742968041148,0.239579,87654.0,87650.0,0.01454085]
[1742968041354,0.228175,87652.0,87651.0,0.12879849]
[1742968041664,0.239583,87652.0,87651.0,0.13942555]
[1742968046672,0.239583,87652.0,87651.0,0.12879849]
[1742968048171,0.239589,87650.0,87649.0,0.000339]
[1742968048397,0.621889,87650.0,87649.0,0.000339]
[1742968050998,0.6305425,87650.0,87649.0,0.000339]
[1742968051222,0.621889,87650.0,87649.0,0.000339]
[1742968052878,1.0310074,87650.0,87649.0,0.000339]
[1742968060345,1.14526504,87650.0,87649.0,0.000339]
[1742968060559,1.0310074,87650.0,87649.0,0.000339]
[1742968065847,1.04887697,87650.0,87649.0,0.000339]
[1742968072455,1.0310074,87650.0,87649.0,0.000339]
[1742968075529,1.04887781,87650.0,87649.0,0.000339]
[1742968076719,0.6487074,87650.0,87649.0,0.12913749]
[1742968082323,0.239589,87650.0,87649.0,0.12913749]
[1742968088520,0.22818,87650.0,87649.0,0.12913749]
[1742968088727,0.239589,87650.0,87649.0,0.12913749]
[1742968095684,0.239589,87650.0,87649.0,0.11459664]
[1742968095806,0.239589,87650.0,87649.0,0.12913749]
[1742968100191,0.2891467,87650.0,87649.0,0.11459664]
[1742968100336,0.239589,87650.0,87649.0,0.000339]
[1742968101416,0.622089,87650.0,87649.0,0.000339]
[1742968102125,0.63995798,87650.0,87649.0,0.000339]
[1742968102345,0.622089,87650.0,87649.0,0.000339]
[1742968103422,0.622089,87650.0,87649.0,1e-06]
[1742968105322,0.63995924,87650.0,87649.0,1e-06]
[1742968108049,0.68705924,87650.0,87649.0,1e-06]
[1742968108592,1.09617764,87650.0,87649.0,1e-06]
[1742968109022,0.621221,87638.0,87637.0,2.7e-07]